bitfinex-derivatives/quotes_ETHF0:USTF0_20250405
["timestamp","ask_amount","ask_price","bid_price","bid_amount"]
[1743844111841,3.2078,1816.4,1815.9,4.9082]
[1743844112045,1.5083,1816.3,1816.2,0.77113]
[1743844114647,1.5083,1816.3,1816.2,1.51106399]
[1743844114850,3.2078,1816.4,1816.3,0.77109]
[1743844115041,3.2078,1816.4,1816.3,2.22079]
[1743844121949,2.8312,1816.5,1816.4,0.77104]
[1743844122451,27.07018416,1816.8,1816.7,0.77092]
[1743844123048,28.51718416,1816.8,1816.7,0.77092]
[1743844123248,29.94178416,1816.8,1816.7,0.77092]
[1743844125454,24.57468416,1816.8,1816.7,0.77092]
[1743844125954,23.86238416,1816.8,1816.7,2.25422]
[1743844126151,2.186,1816.9,1816.8,0.77087]
[1743844126352,2.186,1816.9,1816.8,2.29487]
[1743844127354,2.186,1816.9,1816.8,1.524]
[1743844127854,2.186,1816.9,1816.8,2.29487]
[1743844128755,3.2078,1817.0,1816.9,0.77083]
[1743844128959,3.2078,1817.0,1816.9,3.73723]
[1743844131164,3.2078,1817.0,1816.9,3.03033]
[1743844131358,5.3539,1817.0,1816.9,3.03033]
[1743844133349,5.3539,1817.0,1816.7,0.7041]
[1743844133554,2.89265,1816.9,1816.7,0.77088]
[1743844133758,1.4255,1816.8,1816.7,0.77088]
[1743844135162,0.6963,1816.9,1816.8,0.77087]
[1743844135458,2.1218,1816.9,1816.8,0.77087]
[1743844135659,2.1218,1816.9,1816.8,2.23867]
[1743844137262,2.89263,1816.9,1816.8,2.23867]
[1743844137463,2.89263,1816.9,1816.7,0.77089]
[1743844137764,2.16609,1816.8,1816.7,0.77092]
[1743844137953,2.16609,1816.8,1816.6,2.23872]
[1743844138159,3.2078,1816.8,1816.7,0.77092]
[1743844138353,3.2078,1816.8,1816.7,2.23872]
[1743844139061,5.46447,1816.8,1816.7,1.4678]
[1743844139261,5.46447,1816.8,1816.6,0.77094]
[1743844139558,1.4858,1816.7,1816.6,0.77096]
[1743844140257,2.25673,1816.7,1816.5,2.1759]
[1743844140459,2.25673,1816.7,1816.5,1.4191]
[1743844140460,3.2078,1816.6,1816.5,1.4191]
[1743844140765,6.90856,1816.6,1816.5,1.4191]
[1743844141264,0.771,1816.5,1816.3,1.42736902]
[1743844141464,2.2106,1816.5,1816.3,2.19842902]
[1743844141666,2.2106,1816.5,1816.3,42.99842902]
[1743844141857,1.4396,1816.4,1816.3,42.99842902]
[1743844142360,1.4396,1816.4,1816.3,43.73854025]
[1743844142556,1.4396,1816.4,1816.3,43.73846562]
[1743844145469,5.41844,1816.4,1816.3,42.99842902]
[1743844145765,5.41844,1816.4,1816.3,0.00826902]
[1743844148655,1.92781,1816.3,1815.7,0.77133]
[1743844148860,3.97912,1815.8,1815.6,0.77137]
[1743844149062,3.97912,1815.8,1815.7,40.8]
[1743844149760,3.97912,1815.8,1815.7,1.4561]
[1743844149961,0.77134,1815.7,1815.6,0.00826902]
[1743844150266,1.4335,1815.7,1815.6,40.80826902]
[1743844150468,2.20484,1815.7,1815.6,42.26436902]
[1743844151168,2.96844,1815.7,1815.6,42.26436902]
[1743844151469,2.96844,1815.7,1815.6,40.80826902]
[1743844151769,2.96844,1815.7,1815.6,0.00826902]
[1743844152667,2.1971,1815.7,1815.6,0.77964902]
[1743844152868,2.1971,1815.7,1815.6,2.28294902]
[1743844153066,2.96844,1815.7,1815.6,1.51156902]
[1743844153473,3.97913,1815.8,1815.6,1.51156902]
[1743844153671,3.97913,1815.8,1815.6,2.98531902]
[1743844153977,3.97913,1815.8,1815.7,1.4239]
[1743844157772,0.77134,1815.7,1815.6,0.00826902]
[1743844158073,3.74764,1815.7,1815.6,0.00826902]
[1743844158277,3.74764,1815.7,1815.6,1.49326902]
[1743844163481,0.77134,1815.7,1815.6,1.49326902]
[1743844163679,0.77134,1815.7,1815.6,2.97906902]
[1743844164187,0.77134,1815.7,1815.6,3.75044902]
[1743844164382,3.2078,1815.8,1815.7,0.77134]
[1743844164688,3.2078,1815.8,1815.7,2.16194]
[1743844166085,3.2078,1816.0,1815.7,1.3906]
[1743844166282,3.2078,1816.0,1815.9,0.77126]
[1743844166583,3.97903,1816.0,1815.8,2.27827]
[1743844166785,3.97903,1816.0,1815.9,1.5185]
[1743844166979,3.97903,1816.0,1815.9,3.0255]
[1743844167485,3.97903,1816.0,1815.9,3.79676]
[1743844167786,3.97903,1816.0,1815.9,3.0255]
[1743844167982,3.97903,1816.0,1815.9,3.79676]
[1743844168586,3.2078,1816.0,1815.9,3.79676]
[1743844174193,3.2078,1816.2,1816.1,0.77115]
[1743844180402,0.77118,1816.1,1815.8,3.474]
[1743844180599,0.77118,1816.1,1815.9,0.7388093]
[1743844180799,3.97896,1816.2,1816.0,0.7712]
[1743844182203,0.77119,1816.1,1815.9,0.77122]
[1743844182404,3.67519,1816.1,1815.9,0.77122]
[1743844183403,3.67519,1816.1,1816.0,0.77121]
[1743844184105,2.904,1816.1,1816.0,0.77121]
[1743844188304,6.1118,1816.1,1816.0,0.77121]
[1743844189208,6.88297,1816.1,1816.0,0.77121]
[1743844190115,3.67517,1816.1,1816.0,0.77121]
[1743844190304,6.1118,1816.1,1816.0,0.77121]
[1743844191903,2.904,1816.1,1816.0,0.77121]
[1743844192299,6.1118,1816.1,1816.0,0.77121]
[1743844194210,6.1118,1816.1,1816.0,2.22041]
[1743844194511,6.88297,1816.1,1816.0,2.18987003]
[1743844194703,6.1118,1816.1,1816.0,2.18987003]
[1743844194907,6.88297,1816.1,1816.0,2.18987003]
[1743844195906,6.88297,1816.1,1816.0,2.19005801]
[1743844196306,6.88297,1816.1,1816.0,2.96126801]
[1743844196507,6.88297,1816.1,1816.0,2.19005801]
[1743844198404,6.88297,1816.1,1816.0,0.74085801]
[1743844202508,6.88297,1816.1,1816.0,0.74137778]
[1743844204517,6.88297,1816.1,1816.0,2.17227778]
[1743844206212,6.88297,1816.1,1816.0,2.1723902]
[1743844207221,3.67517,1816.1,1816.0,2.1723902]
[1743844207419,6.88297,1816.1,1816.0,2.1723902]
[1743844209712,6.88297,1816.1,1816.0,2.94380146]
[1743844210018,3.97892,1816.3,1816.0,2.94380146]
[1743844210208,0.77106,1816.4,1816.2,0.77109]
[1743844210412,0.77106,1816.4,1816.3,2.19989146]
[1743844210618,0.77106,1816.4,1816.3,1.4582]
[1743844210915,3.63966,1816.4,1816.3,1.4582]
[1743844214324,3.63966,1816.4,1816.3,2.1992494]
[1743844215121,3.21606902,1816.5,1816.3,2.9703394]
[1743844215321,3.98706902,1816.5,1816.4,1.4055]
[1743844215721,0.00826902,1816.5,1816.4,2.91728509]
[1743844215924,23.86238416,1816.9,1816.8,0.77087]
[1743844216620,24.63323416,1816.9,1816.7,0.77091]
[1743844216819,24.63323416,1816.9,1816.8,2.8226]
[1743844217019,0.77085,1816.9,1816.8,2.8226]
[1743844217220,2.23905,1816.9,1816.8,2.8226]
[1743844217524,2.23905,1816.9,1816.8,1.4055]
[1743844217718,0.77087,1816.8,1816.7,0.00826902]
[1743844217920,5.43377,1816.8,1816.7,0.00826902]
[1743844219924,3.2078,1816.8,1816.7,0.77918902]
[1743844220224,3.2078,1816.8,1816.7,2.25988902]
[1743844220420,3.97867,1816.8,1816.7,43.05988902]
[1743844220725,3.97867,1816.8,1816.7,42.28896902]
[1743844221024,3.97867,1816.8,1816.7,43.05988902]
[1743844221217,3.2078,1816.8,1816.7,44.47018902]
[1743844221620,3.2078,1816.8,1816.7,45.20836666]
[1743844222218,3.2078,1816.8,1816.7,44.47018902]
[1743844223418,3.2078,1816.8,1816.7,45.20775771]
[1743844224227,3.2078,1816.8,1816.7,44.47018902]
[1743844226028,3.2078,1816.8,1816.7,3.67018902]
[1743844227021,3.2078,1816.8,1816.7,6.17018902]
[1743844227222,3.2078,1817.1,1817.0,0.77079]
[1743844228422,3.2078,1817.1,1817.0,2.26009]
[1743844228625,3.97855,1817.1,1817.0,1.4893]
[1743844229926,6.19845,1817.1,1817.0,1.4893]
[1743844233825,3.2078,1817.1,1817.0,2.26009]
[1743844236824,3.97855,1817.1,1817.0,2.26009]
[1743844237430,3.2078,1817.1,1817.0,2.26009]
[1743844237631,3.2078,1817.3,1817.2,0.77067]
[1743844238323,27.84077416,1817.5,1817.1,3.503]
[1743844238519,27.84077416,1817.5,1817.3,0.77063]
[1743844238724,27.84077416,1817.5,1817.4,1.4729]
[1743844238924,27.07018416,1817.5,1817.4,2.24352]
[1743844239330,27.84076416,1817.5,1817.4,2.24352]
[1743844239522,27.07018416,1817.5,1817.4,2.24352]
[1743844240131,23.86238416,1817.5,1817.4,2.24352]
[1743844240631,23.86238416,1817.5,1817.4,6.48335602]
[1743844242234,23.86238416,1817.5,1817.4,5.74752]
[1743844242537,3.2078,1817.7,1817.6,0.77053]
[1743844243531,3.2078,1817.9,1817.8,0.77045]
[1743844243736,5.41523,1818.1,1817.7,5.6138]
[1743844243938,5.41523,1818.1,1817.9,0.77039]
[1743844244133,5.41523,1818.1,1818.0,1.3964]
[1743844245236,4.6449,1818.1,1818.0,2.16676]
[1743844245438,5.41522,1818.1,1818.0,1.3964]
[1743844245739,3.9018,1818.1,1818.0,2.16676]
[1743844245937,4.67212,1818.1,1818.0,1.3964]
[1743844247237,0.77038,1818.0,1817.9,0.77041]
[1743844247437,2.99708,1818.0,1817.9,0.77041]
[1743844247832,2.2267,1818.0,1817.9,0.77041]
[1743844248032,2.2267,1818.0,1817.9,2.21261]
[1743844248228,2.99706,1818.0,1817.8,0.77042]
[1743844248431,0.77045,1817.8,1817.7,0.72166902]
[1743844248633,0.77045,1817.8,1817.7,0.00826902]
[1743844248834,2.19595,1817.8,1817.7,0.00826902]
[1743844249240,3.97825,1817.9,1817.7,0.77874902]
[1743844249432,3.97825,1817.9,1817.8,2.1891]
[1743844250242,3.2078,1817.9,1817.8,2.95955]
[1743844250839,3.2078,1817.9,1817.8,43.75955]
[1743844251639,3.2078,1817.9,1817.8,47.27855]
[1743844251944,3.2078,1818.1,1818.0,0.77036]
[1743844252842,5.4026,1818.4,1818.3,0.77024]
[1743844253036,6.1393,1818.4,1818.3,0.77024]
[1743844253237,3.2078,1818.4,1818.3,0.77024]
[1743844254246,3.2078,1818.4,1818.3,2.27304]
[1743844254447,3.978,1818.4,1818.3,1.5028]
[1743844254641,4.7147,1818.4,1818.2,1.48255]
[1743844254843,2.24294,1818.3,1818.2,1.5028]
[1743844255051,2.24294,1818.3,1818.0,1.52135]
[1743844255052,0.77029,1818.2,1818.0,1.52135]
[1743844255250,1.4727,1818.2,1818.0,1.52135]
[1743844255455,1.4727,1818.2,1818.0,3.02415]
[1743844255655,1.4727,1818.2,1818.1,0.77032]
[1743844255856,1.4727,1818.2,1818.1,2.27312]
[1743844257054,1.4727,1818.2,1818.1,1.5028]
[1743844257656,2.24298,1818.2,1818.1,1.5028]
[1743844257855,1.4727,1818.2,1818.1,1.5028]
[1743844258252,1.4727,1818.2,1818.1,2.27312]
[1743844258554,1.4727,1818.2,1818.1,1.5028]
[1743844258956,1.4727,1818.2,1818.1,2.27312]
[1743844259356,1.4727,1818.2,1818.1,1.5028]
[1743844259756,5.45078,1818.2,1818.1,1.5028]
[1743844260655,0.77032,1818.1,1818.0,0.751]
[1743844260848,6.7298,1818.2,1818.0,1.52134]
[1743844260849,7.50011,1818.2,1818.0,1.52134]
[1743844261050,6.7298,1818.2,1818.1,0.77032]
[1743844261246,3.2078,1818.2,1818.1,0.77032]
[1743844261651,3.2078,1818.2,1818.0,3.526]
[1743844261652,3.2078,1818.4,1818.3,0.77024]
[1743844262055,3.2078,1818.7,1818.0,5.45182]
[1743844262258,3.2078,1818.7,1818.6,0.77009]
[1743844262748,3.2078,1818.7,1818.2,5.1334]
[1743844262749,3.97787,1818.7,1818.5,0.77012]
[1743844263149,3.2078,1818.7,1818.6,0.77011]
[1743844263351,3.2078,1818.9,1818.8,0.77003]
[1743844263555,3.2078,1818.9,1818.7,4.30904]
[1743844263757,3.2078,1818.9,1818.8,0.77003]
[1743844263960,3.2078,1818.9,1818.8,41.57003]
[1743844264354,3.2078,1818.9,1818.8,40.8]
[1743844264559,3.97778,1818.9,1818.8,40.8]
[1743844264757,0.77003,1818.8,1818.7,0.00824584]
[1743844265763,6.043,1818.8,1818.2,3.543]
[1743844265958,3.97794,1818.6,1818.3,0.77022]
[1743844266154,0.77017,1818.5,1818.2,0.77026]
[1743844266554,0.77017,1818.5,1818.3,0.77023]
[1743844266763,3.2078,1818.6,1818.4,0.77016]
[1743844266959,3.21596856,1818.6,1818.4,0.77016]
[1743844267160,3.21596856,1818.6,1818.5,0.77015]
[1743844267354,0.00816856,1818.6,1818.3,3.547]
[1743844267555,0.00816856,1818.6,1818.5,0.77015]
[1743844269166,0.00816856,1818.6,1818.4,0.77016]
[1743844269565,0.00816856,1818.6,1818.3,3.547]
[1743844269769,0.00816856,1818.6,1818.5,0.77015]
[1743844270063,0.00816856,1818.6,1818.3,3.547]
[1743844270668,0.00816856,1818.6,1818.5,0.77015]
[1743844273867,0.00816856,1818.6,1818.5,1.50497059]
[1743844274069,0.00816856,1818.6,1818.5,1.5049709]
[1743844274369,0.00816856,1818.6,1818.5,1.5049528]
[1743844274769,0.00816856,1818.6,1818.5,0.77015]
[1743844274972,0.00816856,1818.6,1818.5,1.5049575]
[1743844275872,0.00816856,1818.6,1818.5,1.50491391]
[1743844276375,3.2078,1818.8,1818.7,0.77007]
[1743844278473,3.2078,1818.8,1818.6,4.31708]
[1743844278662,3.2078,1818.8,1818.7,0.77007]
[1743844279377,5.7078,1818.8,1818.1,45.93359]
[1743844279566,3.2078,1818.6,1818.5,0.77015]
[1743844281264,3.97791,1818.6,1818.4,0.77017]
[1743844281963,3.2078,1818.6,1818.4,0.77017]
[1743844282166,3.97791,1818.6,1818.4,0.77017]
[1743844282574,3.2078,1818.6,1818.4,0.77017]
[1743844283478,3.2078,1818.6,1818.5,0.77015]
[1743844284677,3.97785,1818.8,1818.6,0.7701]
[1743844284978,3.2078,1818.8,1818.7,0.77007]
[1743844285981,3.2078,1819.0,1818.9,0.76996]
[1743844286172,47.83167,1820.3,1818.9,0.76996]
[1743844286173,3.2078,1819.2,1819.1,0.7699]
[1743844286476,3.97749,1819.6,1819.3,0.7698]
[1743844286879,3.97749,1819.6,1819.4,40.8]
[1743844287079,0.76973,1819.5,1819.4,40.8]
[1743844289275,0.76979,1819.4,1819.2,0.76985]
[1743844289581,0.76982,1819.3,1819.1,0.76987]
[1743844289769,3.9776,1819.4,1819.2,0.76985]
[1743844290682,3.9776,1819.4,1819.1,0.76986]
[1743844290880,3.9776,1819.4,1819.1,0.76987]
[1743844291382,0.76982,1819.3,1819.1,0.76987]
[1743844291681,3.97759,1819.4,1819.2,0.76986]
[1743844292181,3.97759,1819.4,1819.1,41.56989]
[1743844292383,3.97768,1819.2,1819.0,3.56024584]
[1743844292574,3.97768,1819.2,1819.0,1.48114584]
[1743844292982,2.2944,1819.1,1819.0,1.48114584]
[1743844293482,2.2944,1819.1,1819.0,0.00824584]
[1743844293678,4.7944,1819.1,1819.0,0.00824584]
[1743844296282,2.2944,1819.1,1819.0,0.00824584]
[1743844296680,1.5245,1819.1,1819.0,0.00824584]
[1743844296982,0.7699,1819.1,1819.0,0.00824584]
[1743844297175,0.7699,1819.1,1819.0,1.47194584]
[1743844298281,2.2592,1819.1,1819.0,0.00824584]
[1743844298470,3.0147,1819.1,1819.0,0.00824584]
[1743844300077,3.7179,1819.1,1819.0,0.00824584]
[1743844300277,3.0147,1819.1,1819.0,0.00824584]
[1743844300475,2.2592,1819.1,1819.0,0.00824584]
[1743844300675,2.2592,1819.1,1819.0,1.51094584]
[1743844301282,0.7699,1819.1,1819.0,1.51094584]
[1743844301483,0.7699,1819.1,1819.0,2.99824584]
[1743844301783,2.2437,1819.1,1819.0,0.00824584]
[1743844301976,2.9469,1819.1,1819.0,0.00824584]
[1743844302371,2.2437,1819.1,1819.0,0.00824584]
[1743844302581,2.2437,1819.1,1819.0,2.26044584]
[1743844302880,0.7699,1819.1,1819.0,0.00824584]
[1743844303078,2.9354,1819.1,1819.0,0.00824584]
[1743844308788,5.4354,1819.1,1819.0,0.00824584]
[1743844309085,5.4354,1819.1,1818.3,0.77021]
[1743844309086,0.77018,1818.5,1818.3,0.77021]
[1743844309278,0.77018,1818.5,1818.4,1.4273]
[1743844309478,3.97798,1818.5,1818.4,1.4273]
[1743844309677,3.97798,1818.5,1818.4,42.2273]
[1743844309877,3.97798,1818.5,1818.4,42.9975]
[1743844310787,3.2078,1818.5,1818.4,44.4845]
[1743844311887,3.97795,1818.5,1818.4,44.4845]
[1743844312090,3.2078,1818.5,1818.4,44.4845]
[1743844312581,3.97795,1818.5,1818.4,43.7143]
[1743844313682,3.97795,1818.5,1818.4,2.9143]
[1743844314084,3.2078,1818.5,1818.4,3.6845]
[1743844314279,3.2078,1818.5,1818.4,2.9143]
[1743844314481,3.2078,1818.5,1818.4,3.6845]
[1743844315986,0.77838584,1818.6,1818.4,3.6845]
[1743844316178,0.77838584,1818.6,1818.5,1.4276]
[1743844316689,0.77838584,1818.6,1818.5,2.19775]
[1743844316890,0.77838584,1818.6,1818.5,1.4276]
[1743844317083,0.00824584,1818.6,1818.5,2.19775]
[1743844318189,3.2078,1818.7,1818.6,0.77011]
[1743844318390,3.2078,1818.9,1818.8,0.77]
[1743844318993,3.2078,1818.9,1818.8,2.2019]
[1743844320295,3.97778,1818.9,1818.8,1.4319]
[1743844322989,6.23328,1818.9,1818.8,1.4319]
[1743844323394,3.97778,1818.9,1818.8,1.4319]
[1743844323689,3.2078,1818.9,1818.8,2.20193]
[1743844323893,3.2078,1818.9,1818.8,2.93778646]
[1743844325091,3.2078,1818.9,1818.8,2.20193]
[1743844325298,3.97778,1818.9,1818.8,1.4319]
[1743844326896,3.2078,1818.9,1818.8,2.20193]
[1743844327199,3.97778,1818.9,1818.8,1.4319]
[1743844327597,3.2078,1818.9,1818.8,1.4319]
[1743844327797,3.97778,1818.9,1818.8,1.4319]
[1743844328299,3.2078,1818.9,1818.8,2.20193]
[1743844328598,3.97778,1818.9,1818.8,1.4319]
[1743844330594,4.71548,1818.9,1818.8,1.4319]
[1743844330801,6.22028,1818.9,1818.8,1.4319]
[1743844331992,5.4503,1818.9,1818.5,0.77013]
[1743844332193,0.77009,1818.7,1818.6,1.4082]
[1743844332394,3.97789,1818.7,1818.6,1.4082]
[1743844332593,4.71559,1818.7,1818.6,1.4082]
[1743844333299,4.71559,1818.7,1818.6,2.17831]
[1743844333501,3.2078,1818.9,1818.8,0.77002]
[1743844335100,3.2078,1818.9,1818.8,1.52522]
[1743844335296,3.2078,1818.9,1818.8,7.57222]
[1743844335502,3.97762,1819.3,1819.1,0.76989]
[1743844335701,3.97762,1819.3,1819.2,1.5181]
[1743844336605,3.2078,1819.3,1819.2,1.5181]
[1743844336902,5.46861,1819.3,1819.2,1.5181]
[1743844337103,4.6988,1819.3,1819.2,1.5181]
[1743844338404,4.6988,1819.3,1819.2,2.28796]
[1743844339105,3.2078,1819.3,1819.2,3.02506]
[1743844339503,1.5136,1819.4,1819.3,0.76981]
[1743844339812,1.5136,1819.4,1819.3,2.15921]
[1743844340408,1.5136,1819.4,1819.3,1.3894]
[1743844340709,2.28337,1819.4,1819.3,1.3894]
[1743844340905,3.75817,1819.4,1819.3,1.3894]
[1743844341105,2.9884,1819.4,1819.1,0.7552]
[1743844341310,3.2078,1819.2,1819.1,1.52509]
[1743844341502,3.2078,1819.2,1819.1,2.99879]
[1743844341705,4.6826,1819.2,1819.1,2.99879]
[1743844341907,4.6826,1819.2,1819.1,2.2289]
[1743844342111,5.45246,1819.2,1819.1,2.2289]
[1743844342504,4.6826,1819.2,1819.1,2.9988]
[1743844342699,5.45246,1819.2,1819.1,2.2289]
[1743844342908,4.6826,1819.2,1819.1,2.2289]
[1743844343614,5.45246,1819.2,1819.1,2.2289]
[1743844344314,4.6826,1819.2,1819.1,2.9988]
[1743844344814,5.45246,1819.2,1819.1,2.2289]
[1743844345002,5.45246,1819.2,1819.1,1.4737]
[1743844345403,5.45246,1819.2,1819.0,0.77817584]
[1743844345609,2.2125,1819.1,1819.0,2.20757584]
[1743844346116,2.9824,1819.1,1819.0,1.43764584]
[1743844346314,3.6893,1819.1,1819.0,1.43764584]
[1743844346916,3.97769,1819.2,1819.1,0.7699]
[1743844347105,3.2078,1819.2,1819.1,0.7699]
[1743844347309,3.97766,1819.2,1819.0,2.20755584]
[1743844347507,4.7072,1819.2,1819.1,0.7699]
[1743844347711,5.47706,1819.2,1819.1,2.2767]
[1743844347911,4.7072,1819.2,1819.1,2.2767]
[1743844348820,5.47706,1819.2,1819.1,1.5068]
[1743844351519,5.47706,1819.2,1819.0,0.77815584]
[1743844351718,3.2078,1819.2,1819.1,0.7699]
[1743844352223,0.7699,1819.1,1819.0,1.41104584]
[1743844352421,2.2338,1819.1,1819.0,1.41104584]
[1743844352621,2.9855,1819.1,1819.0,1.41104584]
[1743844354019,0.7699,1819.1,1819.0,0.00824584]
[1743844354219,0.7699,1819.1,1819.0,1.53234584]
[1743844354626,2.2276,1819.1,1819.0,1.53234584]
[1743844354920,0.77003,1818.8,1818.7,1.5241]
[1743844355127,0.77008,1818.7,1818.5,1.53173]
[1743844355313,2.97808,1818.7,1818.6,1.5241]
[1743844355514,3.67718,1818.7,1818.6,1.5241]
[1743844356216,2.9071,1818.7,1818.6,2.29421]
[1743844356420,3.21604584,1818.8,1818.6,2.29421]
[1743844356727,3.98607584,1818.8,1818.7,1.5064]
[1743844358521,5.46007584,1818.8,1818.7,1.5064]
[1743844360431,3.21604584,1818.8,1818.7,2.99657]
[1743844362432,0.00824584,1818.8,1818.7,3.73931081]
[1743844362827,0.00824584,1818.8,1818.7,2.99657]
[1743844363032,0.00824584,1818.8,1818.7,3.73937603]
[1743844364733,0.00824584,1818.8,1818.7,3.73937519]
[1743844365438,0.00824584,1818.8,1818.7,2.99657]
[1743844365836,0.00824584,1818.8,1818.7,3.73944345]
[1743844366536,0.00824584,1818.8,1818.7,3.73948307]
[1743844367742,0.00824584,1818.8,1818.7,2.99657]
[1743844368342,3.2078,1819.2,1819.1,0.7699]
[1743844368840,3.97766,1819.2,1819.0,0.76991]
[1743844369041,3.97766,1819.2,1819.1,0.7348]
[1743844369241,3.97766,1819.2,1819.1,2.1576]
[1743844369445,3.97766,1819.2,1819.1,1.4228]
[1743844369640,5.38406,1819.2,1819.1,1.4228]
[1743844370534,4.6142,1819.2,1819.1,2.1927]
[1743844370740,5.38406,1819.2,1819.1,2.1927]
[1743844371937,4.6142,1819.2,1819.1,2.1927]
[1743844372240,0.76992,1819.1,1818.9,0.76996]
[1743844372435,0.76992,1819.1,1818.9,1.4654]
[1743844372638,2.19602,1819.1,1818.9,2.23535]
[1743844372939,2.19602,1819.1,1819.0,1.4654]
[1743844373641,1.4261,1819.1,1819.0,2.23534]
[1743844374042,2.196,1819.1,1819.0,2.23534]
[1743844374244,1.4261,1819.1,1819.0,2.23534]
[1743844375532,2.196,1819.1,1819.0,2.23534]
[1743844375739,2.196,1819.1,1819.0,1.4654]
[1743844375946,2.196,1819.1,1819.0,2.23534]
[1743844376242,3.97769,1819.2,1819.0,2.23534]
[1743844376438,5.36579,1819.2,1819.1,1.5092]
[1743844378737,5.36579,1819.2,1818.9,0.76996]
[1743844378738,0.76992,1819.1,1818.9,0.76996]
[1743844378938,3.97774,1819.0,1818.8,0.77]
[1743844379133,4.69694,1819.0,1818.8,2.1918]
[1743844379338,6.18594,1819.0,1818.9,0.76998]
[1743844379538,5.416,1819.0,1818.8,2.1918]
[1743844379844,2.25898,1818.9,1818.8,1.4218]
[1743844380538,2.25898,1818.9,1818.7,1.49014]
[1743844380737,2.25898,1818.9,1818.6,2.2206]
[1743844380738,0.77007,1818.7,1818.6,2.2206]
[1743844381049,0.77007,1818.7,1818.6,2.96452072]
[1743844381247,2.18907,1818.7,1818.6,2.19922072]
[1743844381543,2.94997,1818.7,1818.6,1.4553]
[1743844382545,2.94997,1818.7,1818.6,2.22541]
[1743844382737,2.94997,1818.7,1818.6,1.4553]
[1743844382938,2.94997,1818.7,1818.6,2.22541]
[1743844383247,2.94997,1818.7,1818.6,1.4553]
[1743844386540,2.94997,1818.7,1818.6,2.22541]
[1743844386845,2.1799,1818.7,1818.6,2.22541]
[1743844387350,2.94997,1818.7,1818.6,2.22541]
[1743844388042,2.1799,1818.7,1818.6,2.22541]
[1743844388243,5.3877,1818.7,1818.6,2.22541]
[1743844388852,6.15777,1818.7,1818.6,1.4553]
[1743844390049,6.15777,1818.7,1818.6,2.22541]
[1743844390255,9.68377,1818.7,1818.6,2.22541]
[1743844390449,9.68377,1818.7,1818.6,1.4553]
[1743844398660,9.68377,1818.7,1818.6,2.22541]
[1743844398854,6.7338,1818.7,1818.6,2.22541]
[1743844399059,7.50387,1818.7,1818.6,2.22541]
[1743844399461,7.50387,1818.7,1818.6,1.4553]
[1743844401355,6.7338,1818.7,1818.6,2.22541]
[1743844401755,7.50387,1818.7,1818.6,2.22541]
[1743844402062,7.50387,1818.7,1818.6,1.4553]
[1743844404863,7.50387,1818.7,1818.6,2.22541]
[1743844405163,7.50387,1818.7,1818.6,1.4553]
[1743844405463,6.7338,1818.7,1818.6,2.22541]
[1743844405659,3.2078,1818.7,1818.6,2.22541]
[1743844408363,3.2078,1818.7,1818.6,2.97039872]
[1743844408956,3.2078,1818.7,1818.6,2.9704071]
[1743844409554,3.2078,1818.7,1818.6,2.97103166]
[1743844409759,3.2078,1818.7,1818.6,2.22541]
[1743844410861,3.2078,1818.7,1818.6,2.97103649]
[1743844411062,3.2078,1818.7,1818.6,2.97100832]
[1743844411467,3.2078,1818.7,1818.6,2.97101015]
[1743844417066,3.97787,1818.7,1818.6,0.74560015]
[1743844417271,0.77011,1818.6,1818.5,2.88424584]
[1743844417471,2.28171,1818.6,1818.5,3.62992453]
[1743844417674,2.28171,1818.6,1818.5,4.40007453]
[1743844417867,5.46339,1818.7,1818.5,4.40007453]
[1743844418068,5.46339,1818.7,1818.6,2.18791]
[1743844418268,3.9335,1818.7,1818.6,2.93356556]
[1743844419574,3.2078,1818.7,1818.6,2.93356556]
[1743844420376,3.97787,1818.7,1818.6,2.93356556]
[1743844420580,3.97787,1818.7,1818.6,2.16345556]
[1743844420976,3.2078,1818.7,1818.6,2.93356556]
[1743844421975,6.55716,1818.8,1818.6,2.93356556]
[1743844422279,6.55716,1818.8,1818.7,1.491]
[1743844422478,9.76496,1818.8,1818.7,1.491]
[1743844424874,9.76496,1818.8,1818.7,2.26107]
[1743844425180,9.76496,1818.8,1818.7,1.491]
[1743844428972,9.76496,1818.8,1818.7,2.2389]
[1743844429176,6.7208,1818.8,1818.7,3.00897]
[1743844429578,3.2078,1818.8,1818.7,3.00897]
[1743844430886,3.97783,1818.8,1818.7,3.00897]
[1743844432387,3.97783,1818.8,1818.7,3.75470969]
[1743844432982,3.2078,1818.8,1818.7,3.75470969]
[1743844433288,3.97783,1818.8,1818.7,2.2389]
[1743844433774,3.97783,1818.8,1818.7,2.98461512]
[1743844434088,3.97783,1818.8,1818.7,2.2389]
[1743844434281,5.39833,1818.8,1818.7,2.98460922]
[1743844434482,5.39833,1818.8,1818.7,2.2389]
[1743844434888,5.39833,1818.8,1818.7,1.491]
[1743844437292,2.19053,1818.8,1818.7,1.491]
[1743844437485,5.39833,1818.8,1818.7,1.491]
[1743844439888,5.39833,1818.8,1818.7,2.26107]
[1743844440091,5.39833,1818.8,1818.7,1.491]
[1743844441392,0.77007,1818.7,1818.6,1.49507]
[1743844441594,2.97277,1818.7,1818.6,0.725]
[1743844441789,2.97277,1818.7,1818.6,2.1956]
[1743844441989,2.97277,1818.7,1818.6,1.4706]
[1743844442189,3.66587,1818.7,1818.6,1.4706]
[1743844443997,3.66587,1818.7,1818.6,2.24071]
[1743844444195,3.66587,1818.7,1818.6,2.96031]
[1743844444792,2.8958,1818.7,1818.1,40.8]
[1743844444995,0.77018,1818.5,1818.3,2.19651]
[1743844445194,4.9658,1818.6,1818.4,2.2301]
[1743844445396,3.2078,1818.5,1818.4,2.2301]